[Event "FIDE WCCC Open-10 2024"]
[Site "Montesilvano"]
[Date "2024.11.18"]
[Round "2.13"]
[White "Yao, Lucas Mason Pin Qian"]
[Black "Dien James"]
[Result "1-0"]
[ECO "B01"]
[WhiteElo "1687"]
[BlackElo "1513"]
[PlyCount "73"]
[EventDate "2024.11.18"]
[EventType "swiss"]
[EventCountry "ITA"]
[TimeControl "5400+30"]

1. e4 {[%emt 0:00:04]} d5 {[%emt 0:00:07]} 2. exd5 {[%emt 0:00:07]} Qxd5 {[%emt 0:00:21]} 3. Nc3 {[%emt 0:00:16]} Qd8 {[%emt 0:01:50]} 4. d4 {[%emt 0:00:46]} c5 {[%emt 0:05:44]} 5. dxc5 {[%emt 0:04:22]} Qxd1+ {[%emt 0:00:51]} 6. Kxd1 {[%emt 0:03:16]} e5 {[%emt 0:01:45]} 7. Bb5+ {[%emt 0:01:19]} Bd7 {[%emt 0:00:48]} 8. Be3 {[%emt 0:00:45]} Nf6 {[%emt 0:00:24]} 9. f3 {[%emt 0:03:55]} Nc6 {[%emt 0:01:31]} 10. Nge2 {[%emt 0:03:03]} O-O-O {[%emt 0:00:35]} 11. Kc1 {[%emt 0:02:49]} Nb4 {[%emt 0:04:16]} 12. Bxd7+ {[%emt 0:03:19]} Rxd7 {[%emt 0:00:16]} 13. a3 {[%emt 0:01:23]} Nbd5 {[%emt 0:00:17]} 14. Bf2 {[%emt 0:02:18]} Rc7 {[%emt 0:01:33]} 15. Nb5 {[%emt 0:01:06]} Rxc5 {[%emt 0:06:17]} 16. Nxa7+ {[%emt 0:02:04]} Kb8 {[%emt 0:00:34]} 17. Bxc5 {[%emt 0:00:40]} Bxc5 {[%emt 0:00:20]} 18. Nb5 {[%emt 0:00:08]} e4 {[%emt 0:01:02]} 19. fxe4 {[%emt 0:04:23]} Nxe4 {[%emt 0:00:57]} 20. Nec3 {[%emt 0:04:37]} Be3+ {[%emt 0:01:28]} 21. Kb1 {[%emt 0:00:31]} Nexc3+ {[%emt 0:02:58]} 22. Nxc3 {[%emt 0:00:42]} Nxc3+ {[%emt 0:00:08]} 23. bxc3 {[%emt 0:00:29]} Rc8 {[%emt 0:00:54]} 24. Rd1 {[%emt 0:00:28]} Rxc3 {[%emt 0:02:06]} 25. Rd3 {[%emt 0:00:10]} Rxd3 {[%emt 0:00:22]} 26. cxd3 {[%emt 0:00:08]} Kc7 {[%emt 0:00:38]} 27. Kc2 {[%emt 0:00:14]} Kc6 {[%emt 0:00:31]} 28. Re1 {[%emt 0:00:48]} Bc5 {[%emt 0:00:30]} 29. a4 {[%emt 0:00:12]} Kb6 {[%emt 0:00:35]} 30. Kb3 {[%emt 0:00:41]} Kc6 {[%emt 0:01:15]} 31. Kc4 {[%emt 0:00:20]} Kd6 {[%emt 0:00:54]} 32. d4 {[%emt 0:00:31]} Bb6 {[%emt 0:00:39]} 33. Rb1 {[%emt 0:00:54]} Kc6 {[%emt 0:01:08]} 34. d5+ {[%emt 0:01:20]} Kc7 {[%emt 0:02:40]} 35. d6+ {[%emt 0:00:11]} Kc6 {[%emt 0:00:11]} 36. Rxb6+ {[%emt 0:00:12]} Kxb6 {[%emt 0:00:47]} 37. Kd5 {[%emt 0:00:05]} 1-0

[Event "FIDE WCCC Open-10 2024"]
[Site "Montesilvano"]
[Date "2024.11.18"]
[Round "2.14"]
[White "Todmunkh, Turbat"]
[Black "Bolashakov, Nurali"]
[Result "0-1"]
[ECO "B22"]
[WhiteElo "1773"]
[BlackElo "2005"]
[PlyCount "110"]
[EventDate "2024.11.18"]
[EventType "swiss"]
[EventCountry "ITA"]
[TimeControl "5400+30"]

1. e4 {[%emt 0:00:09]} c5 {[%emt 0:00:18]} 2. c3 {[%emt 0:00:30]} d5 {[%emt 0:00:25]} 3. exd5 {[%emt 0:00:23]} Qxd5 {[%emt 0:00:49]} 4. d4 {[%emt 0:00:36]} Nf6 {[%emt 0:00:59]} 5. Nf3 {[%emt 0:00:37]} Nc6 {[%emt 0:00:57]} 6. dxc5 {[%emt 0:04:05]} Qxd1+ {[%emt 0:01:38]} 7. Kxd1 {[%emt 0:01:34]} Bg4 {[%emt 0:04:50]} 8. Kc2 {[%emt 0:07:22]} e5 {[%emt 0:07:55]} 9. b4 {[%emt 0:03:31]} O-O-O {[%emt 0:07:47]} 10. Bb5 {[%emt 0:04:44]} Bf5+ {[%emt 0:09:11]} 11. Kb2 {[%emt 0:02:42]} Ng4 {[%emt 0:03:32]} 12. Be3 {[%emt 0:07:16]} Ne7 {[%emt 0:05:58]} 13. Bc4 {[%emt 0:08:20]} Nd5 {[%emt 0:01:26]} 14. Bxd5 {[%emt 0:01:56]} Rxd5 {[%emt 0:00:20]} 15. h3 {[%emt 0:12:29]} Nxe3 {[%emt 0:01:44]} 16. fxe3 {[%emt 0:00:29]} f6 {[%emt 0:04:30]} 17. Re1 {[%emt 0:02:40]} Be6 {[%emt 0:02:37]} 18. e4 {[%emt 0:07:03]} Rd7 {[%emt 0:01:14]} 19. Nbd2 {[%emt 0:03:36]} g6 {[%emt 0:02:29]} 20. Nb3 {[%emt 0:00:26]} Bh6 {[%emt 0:01:37]} 21. Rad1 {[%emt 0:00:23]} Rhd8 {[%emt 0:00:40]} 22. Rxd7 {[%emt 0:09:47]} Rxd7 {[%emt 0:01:45]} 23. Kc2 {[%emt 0:01:47]} Bf4 {[%emt 0:02:26]} 24. c6 {[%emt 0:08:06]} bxc6 {[%emt 0:04:16]} 25. Nc5 {[%emt 0:01:08]} Rd6 {[%emt 0:00:34]} 26. Nxe6 {[%emt 0:00:12]} Rxe6 {[%emt 0:00:06]} 27. g4 {[%emt 0:01:51]} Kc7 {[%emt 0:01:19]} 28. Rd1 {[%emt 0:01:45]} Re8 {[%emt 0:03:02]} 29. a4 {[%emt 0:02:51]} Rh8 {[%emt 0:02:38]} 30. Rg1 {[%emt 0:04:31]} h5 {[%emt 0:08:48]} 31. gxh5 {[%emt 0:00:12]} g5 {[%emt 0:00:06]} 32. h4 {[%emt 0:01:28]} Rxh5 {[%emt 0:00:11]} 33. hxg5 {[%emt 0:00:05]} fxg5 {[%emt 0:00:05]} 34. Kb3 {[%emt 0:00:14]} Kd6 {[%emt 0:01:05]} 35. Kc4 {[%emt 0:00:46]} Ke6 {[%emt 0:00:23]} 36. b5 {[%emt 0:00:12]} cxb5+ {[%emt 0:00:47]} 37. Kxb5 {[%emt 0:00:07]} Kf6 {[%emt 0:01:01]} 38. c4 {[%emt 0:01:47]} Rh3 {[%emt 0:00:40]} 39. Ne1 {[%emt 0:00:40]} Rb3+ {[%emt 0:01:32]} 40. Kc6 {[%emt 0:01:17]} Ke6 {[%emt 0:04:26]} 41. c5 {[%emt 0:00:44]} Rc3 {[%emt 0:01:36]} 42. Rh1 {[%emt 0:00:35]} g4 {[%emt 0:00:19]} 43. Kb5 {[%emt 0:00:32]} Rc1 {[%emt 0:01:49]} 44. Rg1 {[%emt 0:00:13]} Rxc5+ {[%emt 0:01:18]} 45. Kxc5 {[%emt 0:00:41]} Be3+ {[%emt 0:00:09]} 46. Kc6 {[%emt 0:00:06]} Bxg1 {[%emt 0:00:05]} 47. a5 {[%emt 0:00:09]} Kf6 {[%emt 0:00:15]} 48. Kd5 {[%emt 0:00:08]} Bd4 {[%emt 0:00:16]} 49. a6 {[%emt 0:01:08]} g3 {[%emt 0:01:23]} 50. Ng2 {[%emt 0:00:11]} Kg5 {[%emt 0:00:10]} 51. Ke6 {[%emt 0:00:16]} Kg4 {[%emt 0:00:15]} 52. Ne1 {[%emt 0:00:15]} Kh3 {[%emt 0:00:40]} 53. Kf5 {[%emt 0:00:33]} g2 {[%emt 0:00:12]} 54. Nf3 {[%emt 0:00:09]} Kg3 {[%emt 0:00:17]} 55. Nxd4 {[%emt 0:00:09]} exd4 {[%emt 0:00:05]} 0-1

[Event "FIDE WCCC Open-10 2024"]
[Site "Montesilvano"]
[Date "2024.11.18"]
[Round "2.14"]
[White "Kaloh, Edvard"]
[Black "Friscic, Jakov"]
[Result "0-1"]
[ECO "B13"]
[WhiteElo "1506"]
[BlackElo "1685"]
[PlyCount "92"]
[EventDate "2024.11.18"]
[EventType "swiss"]
[EventCountry "ITA"]
[TimeControl "5400+30"]

1. e4 {[%emt 0:00:01]} c6 {[%emt 0:00:07]} 2. d4 {[%emt 0:00:05]} d5 {[%emt 0:00:04]} 3. exd5 {[%emt 0:00:11]} cxd5 {[%emt 0:00:06]} 4. Bd3 {[%emt 0:00:08]} Nc6 {[%emt 0:00:05]} 5. c3 {[%emt 0:00:11]} Qc7 {[%emt 0:00:05]} 6. h3 {[%emt 0:00:20]} Nf6 {[%emt 0:00:06]} 7. Nf3 {[%emt 0:00:26]} g6 {[%emt 0:00:11]} 8. Be3 {[%emt 0:00:43]} Bf5 {[%emt 0:00:06]} 9. Bxf5 {[%emt 0:00:10]} gxf5 {[%emt 0:00:01]} 10. Qd2 {[%emt 0:00:48]} Ne4 {[%emt 0:00:42]} 11. Qc1 {[%emt 0:00:37]} e6 {[%emt 0:00:31]} 12. Nbd2 {[%emt 0:00:17]} Nxc3 {[%emt 0:11:51]} 13. bxc3 {[%emt 0:05:12]} f4 {[%emt 0:00:07]} 14. Nb3 {[%emt 0:01:19]} fxe3 {[%emt 0:00:10]} 15. Qxe3 {[%emt 0:00:06]} Bd6 {[%emt 0:04:37]} 16. Qh6 {[%emt 0:02:11]} O-O-O {[%emt 0:02:04]} 17. O-O {[%emt 0:01:23]} Ne7 {[%emt 0:10:24]} 18. Ng5 {[%emt 0:10:22]} Nf5 {[%emt 0:02:24]} 19. Qh5 {[%emt 0:00:56]} Rdf8 {[%emt 0:00:49]} 20. Qe2 {[%emt 0:05:10]} Qe7 {[%emt 0:02:39]} 21. Nf3 {[%emt 0:01:02]} Rfg8 {[%emt 0:01:11]} 22. c4 {[%emt 0:01:23]} Nh4 {[%emt 0:12:38]} 23. cxd5 {[%emt 0:01:01]} Nxg2 {[%emt 0:01:52]} 24. Rac1+ {[%emt 0:00:50]} Kb8 {[%emt 0:00:11]} 25. Kh1 {[%emt 0:00:48]} Nf4 {[%emt 0:01:16]} 26. Qb5 {[%emt 0:01:38]} Nxd5 {[%emt 0:08:19]} 27. Na5 {[%emt 1:06:42]} Nb6 {[%emt 0:02:54]} 28. Ne5 {[%emt 0:00:00]} Rc8 {[%emt 0:07:04]} 29. Rb1 {[%emt 0:00:00]} Qh4 {[%emt 0:12:29]} 30. Nd7+ {[%emt 0:00:00]} Ka8 {[%emt 0:20:27]} 31. Nxb6+ {[%emt 0:00:00]} axb6 {[%emt 0:00:00]} 32. Rb3 {[%emt 0:00:00]} Qf4 {[%emt 0:00:00]} 33. Rg3 {[%emt 0:00:00]} Qxd4 {[%emt 0:00:00]} 34. Nb3 {[%emt 0:00:00]} Qd5+ {[%emt 0:00:00]} 35. Qxd5 {[%emt 0:00:00]} exd5 {[%emt 0:00:00]} 36. Rd3 {[%emt 0:04:30]} Rc2 {[%emt 0:00:00]} 37. Rxd5 {[%emt 0:00:00]} Bc5 {[%emt 0:00:00]} 38. Nxc5 {[%emt 0:00:00]} bxc5 {[%emt 0:00:00]} 39. a4 {[%emt 0:00:00]} Rc8 {[%emt 0:00:00]} 40. Rd7 {[%emt 0:00:00]} c4 {[%emt 0:00:00]} 41. Rxf7 {[%emt 0:00:00]} c3 {[%emt 0:00:00]} 42. Re7 {[%emt 0:00:00]} Rd2 {[%emt 0:00:00]} 43. Rc1 {[%emt 0:00:00]} c2 {[%emt 0:00:00]} 44. Ree1 {[%emt 0:00:00]} Rcd8 {[%emt 0:00:00]} 45. Kg2 {[%emt 0:00:00]} Rd1 {[%emt 0:00:00]} 46. Kf1 {[%emt 0:00:00]} Rxc1 {[%emt 0:00:00]} 0-1

[Event "FIDE WCCC Open-10 2024"]
[Site "Montesilvano"]
[Date "2024.11.18"]
[Round "2.15"]
[White "Ivanovic, Leonid"]
[Black "Montaigu Dupont, Arthur"]
[Result "1-0"]
[ECO "D85"]
[WhiteElo "1990"]
[BlackElo "1767"]
[PlyCount "67"]
[EventDate "2024.11.18"]
[EventType "swiss"]
[EventCountry "ITA"]
[TimeControl "5400+30"]

1. d4 {[%emt 0:00:12]} Nf6 {[%emt 0:00:03]} 2. c4 {[%emt 0:00:23]} g6 {[%emt 0:00:06]} 3. Nc3 {[%emt 0:00:14]} d5 {[%emt 0:00:02]} 4. cxd5 {[%emt 0:00:18]} Nxd5 {[%emt 0:00:04]} 5. Bd2 {[%emt 0:00:22]} Bg7 {[%emt 0:00:11]} 6. e4 {[%emt 0:00:17]} Nxc3 {[%emt 0:01:24]} 7. Bxc3 {[%emt 0:00:14]} c5 {[%emt 0:01:06]} 8. d5 {[%emt 0:05:53]} O-O {[%emt 0:05:17]} 9. Bxg7 {[%emt 0:13:56]} Kxg7 {[%emt 0:00:08]} 10. Qd2 {[%emt 0:00:35]} Qb6 {[%emt 0:06:24]} 11. h4 {[%emt 0:06:40]} h5 {[%emt 0:05:57]} 12. Ne2 {[%emt 0:06:49]} Rd8 {[%emt 0:03:33]} 13. Nf4 {[%emt 0:05:14]} Nc6 {[%emt 0:04:03]} 14. O-O-O {[%emt 0:18:13]} Nd4 {[%emt 0:03:02]} 15. Ne2 {[%emt 0:01:44]} Nb5 {[%emt 0:00:33]} 16. f3 {[%emt 0:03:37]} e6 {[%emt 0:05:34]} 17. a4 {[%emt 0:03:42]} Nd6 {[%emt 0:02:02]} 18. Qc3+ {[%emt 0:02:41]} Kg8 {[%emt 0:02:28]} 19. e5 {[%emt 0:03:11]} Ne8 {[%emt 0:00:35]} 20. d6 {[%emt 0:00:28]} Bd7 {[%emt 0:00:17]} 21. a5 {[%emt 0:04:47]} Qc6 {[%emt 0:01:48]} 22. g4 {[%emt 0:03:12]} Ng7 {[%emt 0:29:52]} 23. Ng3 {[%emt 0:04:07]} Qa4 {[%emt 0:00:42]} 24. Ne4 {[%emt 0:05:09]} b6 {[%emt 0:05:47]} 25. Bd3 {[%emt 0:03:52]} c4 {[%emt 0:01:46]} 26. Bb1 {[%emt 0:00:30]} Rac8 {[%emt 0:00:56]} 27. Nf6+ {[%emt 0:00:33]} Kf8 {[%emt 0:01:20]} 28. gxh5 {[%emt 0:00:10]} Qxa5 {[%emt 0:00:42]} 29. h6 {[%emt 0:02:36]} Ne8 {[%emt 0:01:55]} 30. h5 {[%emt 0:00:18]} Nxf6 {[%emt 0:01:23]} 31. exf6 {[%emt 0:00:03]} Qg5+ {[%emt 0:00:36]} 32. Qd2 {[%emt 0:01:47]} Qxf6 {[%emt 0:00:35]} 33. h7 {[%emt 0:00:46]} c3 {[%emt 0:00:58]} 34. Qh6+ {[%emt 0:00:09]} 1-0

[Event "FIDE WCCC Open-10 2024"]
[Site "Montesilvano"]
[Date "2024.11.18"]
[Round "2.15"]
[White "Makhsatuly, Rakhim"]
[Black "Chen, Pin-Jui"]
[Result "1-0"]
[ECO "C54"]
[WhiteElo "1683"]
[BlackElo "1505"]
[PlyCount "45"]
[EventDate "2024.11.18"]
[EventType "swiss"]
[EventCountry "ITA"]
[TimeControl "5400+30"]

1. e4 {[%emt 0:00:00]} e5 {[%emt 0:00:02]} 2. Nf3 {[%emt 0:00:04]} Nc6 {[%emt 0:00:05]} 3. Bc4 {[%emt 0:00:05]} Bc5 {[%emt 0:00:05]} 4. O-O {[%emt 0:00:05]} Nf6 {[%emt 0:00:05]} 5. d3 {[%emt 0:00:03]} d6 {[%emt 0:00:06]} 6. c3 {[%emt 0:00:11]} a6 {[%emt 0:00:21]} 7. a4 {[%emt 0:01:08]} Ba7 {[%emt 0:01:25]} 8. Nbd2 {[%emt 0:00:22]} O-O {[%emt 0:01:30]} 9. h3 {[%emt 0:00:14]} Be6 {[%emt 0:03:06]} 10. Re1 {[%emt 0:01:40]} Qd7 {[%emt 0:03:11]} 11. Bxe6 {[%emt 0:00:44]} fxe6 {[%emt 0:06:58]} 12. Nf1 {[%emt 0:00:48]} Nh5 {[%emt 0:13:19]} 13. d4 {[%emt 0:03:56]} Qf7 {[%emt 0:06:47]} 14. Be3 {[%emt 0:07:11]} exd4 {[%emt 0:15:30]} 15. cxd4 {[%emt 0:00:24]} Nf4 {[%emt 0:02:44]} 16. Kh2 {[%emt 0:14:01]} Qg6 {[%emt 0:19:14]} 17. Ng3 {[%emt 0:01:18]} Rad8 {[%emt 0:04:50]} 18. d5 {[%emt 0:01:57]} exd5 {[%emt 0:15:44]} 19. exd5 {[%emt 0:00:08]} Nb4 {[%emt 0:02:09]} 20. Bxa7 {[%emt 0:00:37]} b6 {[%emt 0:00:04]} 21. a5 {[%emt 0:00:11]} Nbxd5 {[%emt 0:00:12]} 22. axb6 {[%emt 0:00:27]} cxb6 {[%emt 0:00:10]} 23. Qd4 {[%emt 0:01:14]} 1-0

[Event "FIDE WCCC Open-10 2024"]
[Site "Montesilvano"]
[Date "2024.11.18"]
[Round "2.16"]
[White "Anetov, Amirzhan"]
[Black "Chen, Chicheng Leon"]
[Result "1-0"]
[ECO "B90"]
[WhiteElo "1767"]
[BlackElo "1987"]
[PlyCount "61"]
[EventDate "2024.11.18"]
[EventType "swiss"]
[EventCountry "ITA"]
[TimeControl "5400+30"]

1. e4 {[%emt 0:00:00]} c5 {[%emt 0:00:06]} 2. Nf3 {[%emt 0:00:03]} d6 {[%emt 0:00:09]} 3. d4 {[%emt 0:00:06]} cxd4 {[%emt 0:00:04]} 4. Nxd4 {[%emt 0:00:04]} Nf6 {[%emt 0:00:09]} 5. Nc3 {[%emt 0:00:02]} a6 {[%emt 0:00:19]} 6. h3 {[%emt 0:00:03]} e5 {[%emt 0:00:07]} 7. Nde2 {[%emt 0:00:04]} h5 {[%emt 0:01:01]} 8. Bg5 {[%emt 0:00:07]} Be7 {[%emt 0:01:23]} 9. Ng3 {[%emt 0:01:03]} h4 {[%emt 0:04:13]} 10. Nf5 {[%emt 0:00:07]} Bxf5 {[%emt 0:00:36]} 11. exf5 {[%emt 0:00:04]} Nbd7 {[%emt 0:07:07]} 12. Be2 {[%emt 0:01:50]} d5 {[%emt 0:06:39]} 13. O-O {[%emt 0:07:03]} d4 {[%emt 0:03:37]} 14. Nb1 {[%emt 0:00:04]} Nd5 {[%emt 0:08:44]} 15. Bxe7 {[%emt 0:01:53]} Nxe7 {[%emt 0:00:43]} 16. Bd3 {[%emt 0:00:05]} Nf6 {[%emt 0:06:38]} 17. Re1 {[%emt 0:00:52]} Qc7 {[%emt 0:10:09]} 18. Qe2 {[%emt 0:03:33]} Nc6 {[%emt 0:06:04]} 19. f4 {[%emt 0:00:17]} Nd7 {[%emt 0:03:20]} 20. fxe5 {[%emt 0:01:32]} Ndxe5 {[%emt 0:02:31]} 21. f6 {[%emt 0:03:47]} gxf6 {[%emt 0:02:51]} 22. Qg4 {[%emt 0:00:48]} Rd8 {[%emt 0:07:42]} 23. Nd2 {[%emt 0:01:39]} Kf8 {[%emt 0:07:17]} 24. Qf4 {[%emt 0:01:50]} Qd6 {[%emt 0:03:40]} 25. Ne4 {[%emt 0:13:44]} Nxd3 {[%emt 0:00:21]} 26. Qf1 {[%emt 0:00:49]} Qf4 {[%emt 0:07:19]} 27. Qxd3 {[%emt 0:00:05]} f5 {[%emt 0:00:38]} 28. Nc5 {[%emt 0:01:47]} b6 {[%emt 0:11:03]} 29. Qxa6 {[%emt 0:00:58]} Rg8 {[%emt 0:00:00]} 30. Nd3 {[%emt 0:00:37]} Qf3 {[%emt 0:00:00]} 31. Qa3+ {[%emt 0:00:07]} 1-0

[Event "FIDE WCCC Open-10 2024"]
[Site "Montesilvano"]
[Date "2024.11.18"]
[Round "2.16"]
[White "Osmolovskii, Nikita"]
[Black "Aghoyan, Gevorg"]
[Result "0-1"]
[ECO "B12"]
[WhiteElo "1468"]
[BlackElo "1682"]
[PlyCount "42"]
[EventDate "2024.11.18"]
[EventType "swiss"]
[EventCountry "ITA"]
[TimeControl "5400+30"]

1. e4 {[%emt 0:00:01]} c6 {[%emt 0:00:10]} 2. d4 {[%emt 0:00:10]} d5 {[%emt 0:00:10]} 3. f3 {[%emt 0:00:06]} dxe4 {[%emt 0:00:10]} 4. fxe4 {[%emt 0:00:10]} e5 {[%emt 0:00:11]} 5. Nf3 {[%emt 0:00:04]} Bg4 {[%emt 0:00:26]} 6. c3 {[%emt 0:00:19]} Nd7 {[%emt 0:01:34]} 7. Be3 {[%emt 0:01:26]} Ngf6 {[%emt 0:01:24]} 8. Bd3 {[%emt 0:00:44]} Bd6 {[%emt 0:02:00]} 9. Nbd2 {[%emt 0:01:24]} O-O {[%emt 0:02:43]} 10. Qc2 {[%emt 0:06:13]} b5 {[%emt 0:10:51]} 11. Bg5 {[%emt 0:16:56]} Re8 {[%emt 0:07:32]} 12. Be2 {[%emt 0:07:27]} Qc7 {[%emt 0:04:49]} 13. dxe5 {[%emt 0:14:07]} Bxe5 {[%emt 0:01:40]} 14. Nxe5 {[%emt 0:02:21]} Qxe5 {[%emt 0:01:37]} 15. Bxf6 {[%emt 0:03:03]} Nxf6 {[%emt 0:00:24]} 16. Bxg4 {[%emt 0:43:59]} Nxg4 {[%emt 1:02:49]} 17. h3 {[%emt 0:00:00]} Qg3+ {[%emt 0:00:00]} 18. Kd1 {[%emt 0:00:00]} Ne3+ {[%emt 0:01:00]} 19. Kc1 {[%emt 0:00:00]} Nxc2 {[%emt 0:00:00]} 20. Kxc2 {[%emt 0:00:00]} Rad8 {[%emt 0:00:00]} 21. Rhg1 {[%emt 0:00:00]} Qd3+ {[%emt 0:00:00]} 0-1

[Event "FIDE WCCC Open-10 2024"]
[Site "Montesilvano"]
[Date "2024.11.18"]
[Round "2.17"]
[White "Advik Amit Agrawal"]
[Black "Katta, Sriansh"]
[Result "1-0"]
[ECO "B31"]
[WhiteElo "1982"]
[BlackElo "1766"]
[PlyCount "145"]
[EventDate "2024.11.18"]
[EventType "swiss"]
[EventCountry "ITA"]
[TimeControl "5400+30"]

1. e4 {[%emt 0:00:37]} c5 {[%emt 0:00:05]} 2. Nf3 {[%emt 0:00:14]} Nc6 {[%emt 0:00:05]} 3. Bb5 {[%emt 0:00:12]} g6 {[%emt 0:00:06]} 4. O-O {[%emt 0:00:10]} Bg7 {[%emt 0:00:04]} 5. Bxc6 {[%emt 0:00:27]} dxc6 {[%emt 0:00:07]} 6. d3 {[%emt 0:00:18]} Nf6 {[%emt 0:00:17]} 7. Re1 {[%emt 0:01:27]} Nd7 {[%emt 0:00:37]} 8. e5 {[%emt 0:00:15]} O-O {[%emt 0:01:46]} 9. Nc3 {[%emt 0:00:14]} b6 {[%emt 0:08:07]} 10. Bf4 {[%emt 0:01:13]} h6 {[%emt 0:02:34]} 11. Qd2 {[%emt 0:01:13]} Kh7 {[%emt 0:00:12]} 12. h4 {[%emt 0:00:27]} Nb8 {[%emt 0:07:32]} 13. Ne4 {[%emt 0:01:39]} Bf5 {[%emt 0:03:22]} 14. Ng3 {[%emt 0:03:55]} Bg4 {[%emt 0:00:40]} 15. Qe3 {[%emt 0:00:47]} Na6 {[%emt 0:01:24]} 16. Nh2 {[%emt 0:07:06]} Be6 {[%emt 0:00:44]} 17. Ne4 {[%emt 0:01:26]} Nb4 {[%emt 0:02:34]} 18. Qe2 {[%emt 0:00:48]} Nd5 {[%emt 0:04:36]} 19. Bg3 {[%emt 0:00:14]} Qd7 {[%emt 0:01:49]} 20. a3 {[%emt 0:03:48]} a5 {[%emt 0:04:45]} 21. Rad1 {[%emt 0:01:59]} Rad8 {[%emt 0:02:17]} 22. h5 {[%emt 0:03:31]} Qc8 {[%emt 0:03:25]} 23. f4 {[%emt 0:03:16]} Bf5 {[%emt 0:01:58]} 24. Qf3 {[%emt 0:01:21]} Qd7 {[%emt 0:08:25]} 25. Bf2 {[%emt 0:01:38]} gxh5 {[%emt 0:04:21]} 26. c4 {[%emt 0:02:56]} Bg4 {[%emt 0:00:57]} 27. Nxg4 {[%emt 0:00:13]} hxg4 {[%emt 0:00:06]} 28. Qg3 {[%emt 0:00:07]} Nc7 {[%emt 0:00:54]} 29. Qh4 {[%emt 0:00:59]} f6 {[%emt 0:07:52]} 30. exf6 {[%emt 0:00:45]} exf6 {[%emt 0:00:23]} 31. Ng3 {[%emt 0:00:52]} f5 {[%emt 0:09:01]} 32. Re7 {[%emt 0:01:37]} Qd6 {[%emt 0:00:07]} 33. Nh5 {[%emt 0:00:12]} Rd7 {[%emt 0:00:21]} 34. Rde1 {[%emt 0:00:33]} Rf7 {[%emt 0:00:17]} 35. R7e5 {[%emt 0:05:39]} Qxd3 {[%emt 0:03:43]} 36. Nxg7 {[%emt 0:00:08]} Kxg7 {[%emt 0:01:07]} 37. Qh5 {[%emt 0:05:46]} Rd6 {[%emt 0:09:01]} 38. b3 {[%emt 0:11:27]} g3 {[%emt 0:02:04]} 39. Be3 {[%emt 0:00:19]} Rg6 {[%emt 0:01:56]} 40. Bc1 {[%emt 0:01:47]} Qd4+ {[%emt 0:01:21]} 41. Kh1 {[%emt 0:00:43]} Qd7 {[%emt 0:00:50]} 42. Bb2 {[%emt 0:01:16]} Kh7 {[%emt 0:00:15]} 43. Qe2 {[%emt 0:01:01]} Qd8 {[%emt 0:00:54]} 44. Re7 {[%emt 0:00:53]} Qf8 {[%emt 0:01:55]} 45. Qe5 {[%emt 0:05:26]} Rgg7 {[%emt 0:06:03]} 46. Qxg7+ {[%emt 0:00:15]} Qxg7 {[%emt 0:00:03]} 47. Bxg7 {[%emt 0:00:18]} Kxg7 {[%emt 0:00:01]} 48. R7e3 {[%emt 0:00:25]} Kf6 {[%emt 0:00:32]} 49. Rxg3 {[%emt 0:00:10]} Ne6 {[%emt 0:00:08]} 50. Rh3 {[%emt 0:00:41]} Nxf4 {[%emt 0:00:16]} 51. Rxh6+ {[%emt 0:00:11]} Ng6 {[%emt 0:00:03]} 52. Rd1 {[%emt 0:00:37]} Kg5 {[%emt 0:00:13]} 53. Rh3 {[%emt 0:00:07]} Nf4 {[%emt 0:01:47]} 54. Rg3+ {[%emt 0:00:27]} Kf6 {[%emt 0:00:06]} 55. Re3 {[%emt 0:00:14]} Rh7+ {[%emt 0:00:30]} 56. Kg1 {[%emt 0:00:14]} Rc7 {[%emt 0:01:06]} 57. Rd6+ {[%emt 0:00:09]} Kg5 {[%emt 0:00:10]} 58. g3 {[%emt 0:00:30]} Nh5 {[%emt 0:00:11]} 59. Kg2 {[%emt 0:00:28]} Nf6 {[%emt 0:00:40]} 60. Ree6 {[%emt 0:00:08]} Ng4 {[%emt 0:00:56]} 61. Rxc6 {[%emt 0:01:34]} Rd7 {[%emt 0:00:17]} 62. Rcd6 {[%emt 0:00:41]} Rh7 {[%emt 0:00:58]} 63. Rg6+ {[%emt 0:00:11]} Kh5 {[%emt 0:00:20]} 64. Rxb6 {[%emt 0:00:17]} Rd7 {[%emt 0:00:21]} 65. Rgd6 {[%emt 0:00:13]} Re7 {[%emt 0:00:01]} 66. Re6 {[%emt 0:00:17]} Rd7 {[%emt 0:00:02]} 67. Rbd6 {[%emt 0:00:37]} Rb7 {[%emt 0:00:01]} 68. Rd3 {[%emt 0:00:11]} a4 {[%emt 0:00:09]} 69. bxa4 {[%emt 0:00:29]} Rb2+ {[%emt 0:00:01]} 70. Kf1 {[%emt 0:00:16]} Rf2+ {[%emt 0:00:25]} 71. Ke1 {[%emt 0:00:24]} Rc2 {[%emt 0:00:01]} 72. a5 {[%emt 0:00:22]} Rxc4 {[%emt 0:00:10]} 73. a6 {[%emt 0:00:18]} 1-0

[Event "FIDE WCCC Open-10 2024"]
[Site "Montesilvano"]
[Date "2024.11.18"]
[Round "2.17"]
[White "Megagiannis, Maximos"]
[Black "Park, Jaeik B"]
[Result "1-0"]
[ECO "B43"]
[WhiteElo "1682"]
[BlackElo "1872"]
[PlyCount "59"]
[EventDate "2024.11.18"]
[EventType "swiss"]
[EventCountry "ITA"]
[TimeControl "5400+30"]

1. e4 {[%emt 0:00:06]} c5 {[%emt 0:00:06]} 2. Nf3 {[%emt 0:00:06]} e6 {[%emt 0:00:05]} 3. d4 {[%emt 0:00:12]} cxd4 {[%emt 0:00:07]} 4. Nxd4 {[%emt 0:00:09]} Nc6 {[%emt 0:00:09]} 5. Nc3 {[%emt 0:00:06]} Qc7 {[%emt 0:00:09]} 6. Nb3 {[%emt 0:00:05]} a6 {[%emt 0:00:15]} 7. Bd3 {[%emt 0:00:15]} Nf6 {[%emt 0:00:32]} 8. f4 {[%emt 0:00:09]} Bb4 {[%emt 0:00:38]} 9. O-O {[%emt 0:01:32]} d6 {[%emt 0:01:22]} 10. Qf3 {[%emt 0:00:59]} Bd7 {[%emt 0:02:01]} 11. Be3 {[%emt 0:05:00]} O-O {[%emt 0:05:13]} 12. Qh3 {[%emt 0:08:56]} e5 {[%emt 0:06:23]} 13. f5 {[%emt 0:00:15]} Bxc3 {[%emt 0:00:22]} 14. bxc3 {[%emt 0:00:09]} d5 {[%emt 0:12:06]} 15. exd5 {[%emt 0:15:34]} Nxd5 {[%emt 0:01:35]} 16. Bg5 {[%emt 0:07:25]} Rae8 {[%emt 0:13:43]} 17. Qh4 {[%emt 0:06:54]} Nce7 {[%emt 0:10:53]} 18. Rf3 {[%emt 0:09:11]} Qb6+ {[%emt 0:05:03]} 19. Kh1 {[%emt 0:01:03]} h6 {[%emt 0:02:08]} 20. f6 {[%emt 0:13:55]} Ng6 {[%emt 0:00:58]} 21. Bxg6 {[%emt 0:01:07]} fxg6 {[%emt 0:00:10]} 22. fxg7 {[%emt 0:01:06]} Rxf3 {[%emt 0:00:56]} 23. Qxh6 {[%emt 0:05:30]} Rh3 {[%emt 0:00:47]} 24. gxh3 {[%emt 0:00:51]} Nf6 {[%emt 0:03:12]} 25. Be3 {[%emt 0:05:10]} Bc6+ {[%emt 0:01:27]} 26. Kg1 {[%emt 0:00:11]} Qb5 {[%emt 0:03:00]} 27. Bc5 {[%emt 0:02:21]} Nh7 {[%emt 0:04:15]} 28. Qxg6 {[%emt 0:00:52]} b6 {[%emt 0:02:28]} 29. Rf1 {[%emt 0:00:49]} bxc5 {[%emt 0:00:56]} 30. Qf7# {[%emt 0:00:20]} 1-0